[Event "Titled Tuesday Blitz March 21 Early 2023"]
[White "Ingebretsen, Jens E"]
[Black "Lorparizangeneh, Shahin"]
[WhiteFideId "1522965"]
[BlackFideId "12521604"]
[WhiteElo "2213"]
[BlackElo "2526"]
[Result "1-0"]
[Round "09"]
[TimeControl "180+2"]
[Date "2023.03.21"]
[WhiteClock "0:00:50"]
[BlackClock "0:00:52"]

1. c4 {[%clk 0:03:00]}  e5 {[%clk 0:02:42]} 2. Nc3 {[%clk 0:02:59]}  Bb4 {[%clk 0:02:42]} 3. g3 {[%clk 0:02:58]}  Bxc3 {[%clk 0:02:42]} 4. bxc3 {[%clk 0:02:57]}  d6 {[%clk 0:02:43]} 5. Bg2 {[%clk 0:02:58]}  Nc6 {[%clk 0:02:43]} 6. d3 {[%clk 0:02:57]}  Be6 {[%clk 0:02:43]} 7. e3 {[%clk 0:02:57]}  Qd7 {[%clk 0:02:43]} 8. Ne2 {[%clk 0:02:57]}  h5 {[%clk 0:02:43]} 9. h3 {[%clk 0:02:56]}  h4 {[%clk 0:02:41]} 10. g4 {[%clk 0:02:56]}  f5 {[%clk 0:02:35]} 11. d4 {[%clk 0:02:43]}  Bxc4 {[%clk 0:02:27]} 12. gxf5 {[%clk 0:02:43]}  Qxf5 {[%clk 0:02:25]} 13. Qa4 {[%clk 0:02:41]}  d5 {[%clk 0:02:19]} 14. e4 {[%clk 0:02:39]}  Qh5 {[%clk 0:02:11]} 15. O-O {[%clk 0:01:58]}  Qxe2 {[%clk 0:01:30]} 16. exd5 {[%clk 0:01:57]}  b5 {[%clk 0:01:28]} 17. Qa6 {[%clk 0:01:54]}  Nce7 {[%clk 0:01:28]} 18. d6 {[%clk 0:01:46]}  cxd6 {[%clk 0:01:26]} 19. Bg5 {[%clk 0:01:37]}  Rd8 {[%clk 0:01:15]} 20. dxe5 {[%clk 0:01:17]}  Qxe5 {[%clk 0:01:05]} 21. Bxe7 {[%clk 0:01:12]}  Nxe7 {[%clk 0:01:06]} 22. Rfe1 {[%clk 0:01:12]}  Qf6 {[%clk 0:01:06]} 23. Qxa7 {[%clk 0:01:10]}  O-O {[%clk 0:00:56]} 24. Rxe7 {[%clk 0:00:50]}  Qxf2+ {[%clk 0:00:52]} 25. Qxf2 {[%clk 0:00:50]} 1-0


[Site "https://www.chess.com"]

[Event "Titled Tuesday Blitz March 21 Early 2023"]
[White "Molina, Roberto Junio Brito"]
[Black "Raahul V S"]
[WhiteFideId "2109450"]
[BlackFideId "25035525"]
[WhiteElo "2376"]
[BlackElo "2168"]
[Result "1-0"]
[Round "09"]
[TimeControl "180+2"]
[Date "2023.03.21"]
[WhiteClock "0:01:28"]
[BlackClock "0:01:36"]

1. d4 {[%clk 0:02:58]}  d5 {[%clk 0:02:57]} 2. c4 {[%clk 0:02:56]}  c6 {[%clk 0:02:56]} 3. Nf3 {[%clk 0:02:56]}  Nf6 {[%clk 0:02:56]} 4. Nc3 {[%clk 0:02:55]}  e6 {[%clk 0:02:56]} 5. Bg5 {[%clk 0:02:55]}  dxc4 {[%clk 0:02:55]} 6. e4 {[%clk 0:02:55]}  b5 {[%clk 0:02:56]} 7. e5 {[%clk 0:02:54]}  h6 {[%clk 0:02:56]} 8. Bh4 {[%clk 0:02:55]}  g5 {[%clk 0:02:57]} 9. Nxg5 {[%clk 0:02:55]}  hxg5 {[%clk 0:02:58]} 10. Bxg5 {[%clk 0:02:56]}  Nbd7 {[%clk 0:02:57]} 11. exf6 {[%clk 0:02:54]}  Bb7 {[%clk 0:02:57]} 12. g3 {[%clk 0:02:54]}  c5 {[%clk 0:02:56]} 13. d5 {[%clk 0:02:55]}  Qb6 {[%clk 0:02:57]} 14. Bg2 {[%clk 0:02:54]}  O-O-O {[%clk 0:02:55]} 15. O-O {[%clk 0:02:54]}  b4 {[%clk 0:02:56]} 16. Na4 {[%clk 0:02:54]}  Qb5 {[%clk 0:02:55]} 17. a3 {[%clk 0:02:52]}  Nb8 {[%clk 0:02:53]} 18. axb4 {[%clk 0:02:50]}  cxb4 {[%clk 0:02:54]} 19. Qg4 {[%clk 0:02:39]}  Bxd5 {[%clk 0:02:54]} 20. Bxd5 {[%clk 0:02:29]}  Rxd5 {[%clk 0:02:55]} 21. h4 {[%clk 0:02:24]}  Nc6 {[%clk 0:02:50]} 22. Rfc1 {[%clk 0:02:22]}  Ne5 {[%clk 0:02:47]} 23. Qe4 {[%clk 0:02:21]}  Rd4 {[%clk 0:02:17]} 24. Qa8+ {[%clk 0:02:09]}  Qb8 {[%clk 0:02:17]} 25. Qxb8+ {[%clk 0:02:04]}  Kxb8 {[%clk 0:02:17]} 26. Bf4 {[%clk 0:02:04]}  Bd6 {[%clk 0:02:16]} 27. Kg2 {[%clk 0:01:59]}  Rg8 {[%clk 0:02:07]} 28. Rd1 {[%clk 0:01:48]}  Nd3 {[%clk 0:01:58]} 29. Bxd6+ {[%clk 0:01:47]}  Rxd6 {[%clk 0:01:59]} 30. Nc5 {[%clk 0:01:40]}  Rc8 {[%clk 0:01:46]} 31. Na6+ {[%clk 0:01:36]}  Rxa6 {[%clk 0:01:42]} 32. Rxa6 {[%clk 0:01:35]}  Nxb2 {[%clk 0:01:43]} 33. Rd7 {[%clk 0:01:34]}  c3 {[%clk 0:01:43]} 34. Raxa7 {[%clk 0:01:32]}  Rc4 {[%clk 0:01:37]} 35. Rdb7+ {[%clk 0:01:28]}  Kc8 {[%clk 0:01:36]} 36. Rxf7 {[%clk 0:01:29]}  Kb8 {[%clk 0:01:36]} 37. Rfb7+ {[%clk 0:01:28]}  Kc8 {[%clk 0:01:36]} 38. f7 {[%clk 0:01:28]} 1-0


[Site "https://www.chess.com"]

[Event "Titled Tuesday Blitz March 21 Early 2023"]
[White "benny_aizenberg"]
[Black "Nazari, Arad"]
[BlackFideId "12577324"]
[WhiteElo "2584"]
[BlackElo "2313"]
[Result "1-0"]
[Round "09"]
[TimeControl "180+2"]
[Date "2023.03.21"]
[WhiteClock "0:00:11"]
[BlackClock "0:00:02"]

1. e4 {[%clk 0:03:00]}  e6 {[%clk 0:02:59]} 2. d4 {[%clk 0:02:57]}  d5 {[%clk 0:02:59]} 3. Bd3 {[%clk 0:02:56]}  dxe4 {[%clk 0:02:50]} 4. Bxe4 {[%clk 0:02:57]}  Nf6 {[%clk 0:02:51]} 5. Bf3 {[%clk 0:02:56]}  c5 {[%clk 0:02:52]} 6. Ne2 {[%clk 0:02:56]}  Nc6 {[%clk 0:02:49]} 7. Be3 {[%clk 0:02:55]}  cxd4 {[%clk 0:02:45]} 8. Nxd4 {[%clk 0:02:55]}  Ne5 {[%clk 0:02:43]} 9. Nc3 {[%clk 0:02:54]}  a6 {[%clk 0:02:33]} 10. Qe2 {[%clk 0:02:51]}  Nxf3+ {[%clk 0:02:33]} 11. Qxf3 {[%clk 0:02:51]}  Bb4 {[%clk 0:02:34]} 12. O-O-O {[%clk 0:02:43]}  Bxc3 {[%clk 0:02:28]} 13. Nc6 {[%clk 0:02:30]}  Qc7 {[%clk 0:02:05]} 14. Rd8+ {[%clk 0:02:28]}  Qxd8 {[%clk 0:02:04]} 15. Nxd8 {[%clk 0:02:29]}  Be5 {[%clk 0:01:53]} 16. Nxb7 {[%clk 0:02:26]}  Rb8 {[%clk 0:01:53]} 17. Nc5 {[%clk 0:02:22]}  Bxb2+ {[%clk 0:01:51]} 18. Kd2 {[%clk 0:02:22]}  O-O {[%clk 0:01:50]} 19. Nd3 {[%clk 0:02:16]}  Ba3 {[%clk 0:01:45]} 20. Rd1 {[%clk 0:02:07]}  Bb7 {[%clk 0:01:43]} 21. Qh3 {[%clk 0:02:00]}  Rbc8 {[%clk 0:01:38]} 22. f3 {[%clk 0:01:52]}  Rfd8 {[%clk 0:01:27]} 23. Bg5 {[%clk 0:01:47]}  Bb4+ {[%clk 0:01:24]} 24. Ke3 {[%clk 0:01:46]}  Be7 {[%clk 0:01:15]} 25. Bxf6 {[%clk 0:01:36]}  Bxf6 {[%clk 0:01:15]} 26. Rb1 {[%clk 0:01:36]}  Bd5 {[%clk 0:01:10]} 27. Qg3 {[%clk 0:01:16]}  Bxa2 {[%clk 0:01:00]} 28. Rb7 {[%clk 0:01:15]}  Rxc2 {[%clk 0:00:33]} 29. Ne5 {[%clk 0:00:48]}  Rc3+ {[%clk 0:00:22]} 30. Ke2 {[%clk 0:00:48]}  Bd5 {[%clk 0:00:19]} 31. Rd7 {[%clk 0:00:31]}  Rdc8 {[%clk 0:00:17]} 32. Nd3 {[%clk 0:00:23]}  Rc2+ {[%clk 0:00:16]} 33. Ke3 {[%clk 0:00:22]}  h6 {[%clk 0:00:15]} 34. Qg4 {[%clk 0:00:18]}  R2c4 {[%clk 0:00:11]} 35. Qh5 {[%clk 0:00:17]}  Bd4+ {[%clk 0:00:11]} 36. Kf4 {[%clk 0:00:15]}  Bf2+ {[%clk 0:00:08]} 37. Ke5 {[%clk 0:00:14]}  f6+ {[%clk 0:00:07]} 38. Kd6 {[%clk 0:00:14]}  R4c6+ {[%clk 0:00:06]} 39. Ke7 {[%clk 0:00:14]}  R6c7 {[%clk 0:00:04]} 40. Nxf2 {[%clk 0:00:13]}  Rxd7+ {[%clk 0:00:03]} 41. Kxd7 {[%clk 0:00:13]}  Ra8 {[%clk 0:00:04]} 42. Ng4 {[%clk 0:00:12]}  a5 {[%clk 0:00:02]} 43. Qg6 {[%clk 0:00:12]}  Kf8 {[%clk 0:00:02]} 44. Qh7 {[%clk 0:00:12]}  Ra7+ {[%clk 0:00:02]} 45. Kd6 {[%clk 0:00:12]}  a4 {[%clk 0:00:03]} 46. Kc5 {[%clk 0:00:09]}  a3 {[%clk 0:00:03]} 47. Nxh6 {[%clk 0:00:09]}  a2 {[%clk 0:00:01]} 48. Qg8+ {[%clk 0:00:10]}  Ke7 {[%clk 0:00:02]} 49. Qxg7+ {[%clk 0:00:11]} 1-0


[Site "https://www.chess.com"]

[Event "Titled Tuesday Blitz March 21 Early 2023"]
[White "Omelja, Artem"]
[Black "Weetik, Vjacheslav"]
[WhiteFideId "14119846"]
[BlackFideId "4153472"]
[WhiteElo "2404"]
[BlackElo "2469"]
[Result "0-1"]
[Round "09"]
[TimeControl "180+2"]
[Date "2023.03.21"]
[WhiteClock "0:00:14"]
[BlackClock "0:01:00"]

1. e4 {[%clk 0:03:00]}  c6 {[%clk 0:02:59]} 2. d3 {[%clk 0:02:52]}  d5 {[%clk 0:03:00]} 3. Nd2 {[%clk 0:02:53]}  g6 {[%clk 0:03:00]} 4. Ngf3 {[%clk 0:02:53]}  Bg7 {[%clk 0:03:00]} 5. g3 {[%clk 0:02:51]}  e5 {[%clk 0:03:00]} 6. Bg2 {[%clk 0:02:51]}  Ne7 {[%clk 0:03:00]} 7. O-O {[%clk 0:02:52]}  O-O {[%clk 0:03:01]} 8. Re1 {[%clk 0:02:51]}  Nd7 {[%clk 0:02:57]} 9. c3 {[%clk 0:02:50]}  b6 {[%clk 0:02:52]} 10. a4 {[%clk 0:02:48]}  a5 {[%clk 0:02:51]} 11. b4 {[%clk 0:02:17]}  axb4 {[%clk 0:02:37]} 12. cxb4 {[%clk 0:02:17]}  d4 {[%clk 0:02:37]} 13. Ba3 {[%clk 0:01:52]}  Ba6 {[%clk 0:02:20]} 14. Qb3 {[%clk 0:01:49]}  b5 {[%clk 0:02:15]} 15. axb5 {[%clk 0:01:41]}  cxb5 {[%clk 0:02:10]} 16. Bb2 {[%clk 0:01:41]}  Nb6 {[%clk 0:02:09]} 17. Rec1 {[%clk 0:01:37]}  Na4 {[%clk 0:02:08]} 18. Bh3 {[%clk 0:01:21]}  Qd6 {[%clk 0:02:00]} 19. Rc2 {[%clk 0:01:10]}  Bc8 {[%clk 0:01:52]} 20. Bxc8 {[%clk 0:01:09]}  Rfxc8 {[%clk 0:01:53]} 21. Rac1 {[%clk 0:01:09]}  Bh6 {[%clk 0:01:43]} 22. Rxc8+ {[%clk 0:00:45]}  Rxc8 {[%clk 0:01:43]} 23. Rxc8+ {[%clk 0:00:46]}  Nxc8 {[%clk 0:01:44]} 24. Nb1 {[%clk 0:00:46]}  Ne7 {[%clk 0:01:32]} 25. Ne1 {[%clk 0:00:33]}  Nc6 {[%clk 0:01:23]} 26. Nc2 {[%clk 0:00:33]}  Bf8 {[%clk 0:01:23]} 27. Ba3 {[%clk 0:00:30]}  Qd7 {[%clk 0:01:11]} 28. f3 {[%clk 0:00:25]}  Bh6 {[%clk 0:01:07]} 29. Ne1 {[%clk 0:00:15]}  Qh3 {[%clk 0:01:00]} 30. Qc2 {[%clk 0:00:14]}  Be3+ {[%clk 0:01:00]} 0-1


[Site "https://www.chess.com"]

[Event "Titled Tuesday Blitz March 21 Early 2023"]
[White "Aradhya, Garg"]
[Black "Staudenhocker43"]
[WhiteFideId "25006746"]
[WhiteElo "2263"]
[BlackElo "2525"]
[Result "1/2-1/2"]
[Round "09"]
[TimeControl "180+2"]
[Date "2023.03.21"]
[WhiteClock "0:01:13"]
[BlackClock "0:00:34"]

1. d4 {[%clk 0:03:00]}  Nf6 {[%clk 0:02:58]} 2. c4 {[%clk 0:03:00]}  e6 {[%clk 0:02:57]} 3. Nf3 {[%clk 0:03:00]}  d5 {[%clk 0:02:57]} 4. Nc3 {[%clk 0:03:01]}  dxc4 {[%clk 0:02:57]} 5. e4 {[%clk 0:03:00]}  Bb4 {[%clk 0:02:55]} 6. Bxc4 {[%clk 0:03:00]}  Nxe4 {[%clk 0:02:55]} 7. O-O {[%clk 0:02:59]}  Nf6 {[%clk 0:02:55]} 8. Qa4+ {[%clk 0:02:58]}  Nc6 {[%clk 0:02:55]} 9. Ne5 {[%clk 0:02:58]}  Rb8 {[%clk 0:02:55]} 10. Nxc6 {[%clk 0:02:54]}  bxc6 {[%clk 0:02:54]} 11. Qxc6+ {[%clk 0:02:54]}  Qd7 {[%clk 0:02:52]} 12. Qxd7+ {[%clk 0:02:48]}  Bxd7 {[%clk 0:02:53]} 13. d5 {[%clk 0:02:39]}  Bxc3 {[%clk 0:02:51]} 14. dxe6 {[%clk 0:02:40]}  Bxe6 {[%clk 0:02:51]} 15. Bxe6 {[%clk 0:02:39]}  Bxb2 {[%clk 0:02:49]} 16. Bxb2 {[%clk 0:02:39]}  Rxb2 {[%clk 0:02:50]} 17. Bb3 {[%clk 0:02:38]}  O-O {[%clk 0:02:50]} 18. Rac1 {[%clk 0:02:38]}  a5 {[%clk 0:02:44]} 19. Rxc7 {[%clk 0:02:37]}  a4 {[%clk 0:02:44]} 20. Bxa4 {[%clk 0:02:37]}  Rxa2 {[%clk 0:02:44]} 21. Bb3 {[%clk 0:02:37]}  Rb2 {[%clk 0:02:44]} 22. Bc4 {[%clk 0:02:37]}  Ng4 {[%clk 0:02:38]} 23. h3 {[%clk 0:02:34]}  Ne5 {[%clk 0:02:38]} 24. Bd5 {[%clk 0:02:34]}  Rd2 {[%clk 0:02:38]} 25. Bb3 {[%clk 0:02:33]}  Rd7 {[%clk 0:02:28]} 26. Rc5 {[%clk 0:02:29]}  Ng6 {[%clk 0:02:25]} 27. g3 {[%clk 0:02:28]}  Re7 {[%clk 0:02:22]} 28. h4 {[%clk 0:02:28]}  Rfe8 {[%clk 0:02:20]} 29. Kg2 {[%clk 0:02:22]}  h6 {[%clk 0:02:11]} 30. Rd1 {[%clk 0:02:20]}  Ne5 {[%clk 0:02:03]} 31. Re1 {[%clk 0:01:55]}  Kf8 {[%clk 0:02:00]} 32. Ba4 {[%clk 0:01:48]}  Ra8 {[%clk 0:01:45]} 33. Bb5 {[%clk 0:01:38]}  Nd7 {[%clk 0:01:27]} 34. Rxe7 {[%clk 0:01:35]}  Nxc5 {[%clk 0:01:28]} 35. Re3 {[%clk 0:01:35]}  Ne6 {[%clk 0:01:23]} 36. Bc4 {[%clk 0:01:34]}  Ke7 {[%clk 0:01:18]} 37. f4 {[%clk 0:01:32]}  Kf6 {[%clk 0:01:18]} 38. Bxe6 {[%clk 0:01:29]}  fxe6 {[%clk 0:01:18]} 39. Kf3 {[%clk 0:01:30]}  h5 {[%clk 0:01:16]} 40. Rc3 {[%clk 0:01:29]}  g6 {[%clk 0:01:16]} 41. Rc7 {[%clk 0:01:28]}  Ra3+ {[%clk 0:01:15]} 42. Kg2 {[%clk 0:01:28]}  Ra2+ {[%clk 0:01:15]} 43. Kh3 {[%clk 0:01:28]}  Re2 {[%clk 0:01:14]} 44. Rc8 {[%clk 0:01:28]}  Kf7 {[%clk 0:01:09]} 45. Rc6 {[%clk 0:01:27]}  Kg7 {[%clk 0:01:05]} 46. Rc7+ {[%clk 0:01:26]}  Kf6 {[%clk 0:01:05]} 47. Rc5 {[%clk 0:01:27]}  Kf7 {[%clk 0:00:49]} 48. Ra5 {[%clk 0:01:26]}  Kf6 {[%clk 0:00:49]} 49. Ra7 {[%clk 0:01:23]}  e5 {[%clk 0:00:45]} 50. Ra6+ {[%clk 0:01:22]}  Kf7 {[%clk 0:00:45]} 51. fxe5 {[%clk 0:01:19]}  Rxe5 {[%clk 0:00:44]} 52. Kg2 {[%clk 0:01:20]}  Re3 {[%clk 0:00:42]} 53. Ra4 {[%clk 0:01:17]}  Kg7 {[%clk 0:00:41]} 54. Rf4 {[%clk 0:01:18]}  Ra3 {[%clk 0:00:40]} 55. Rf3 {[%clk 0:01:17]}  Ra2+ {[%clk 0:00:40]} 56. Kh3 {[%clk 0:01:15]}  Rb2 {[%clk 0:00:40]} 57. Re3 {[%clk 0:01:15]}  Ra2 {[%clk 0:00:40]} 58. Rb3 {[%clk 0:01:14]}  Rc2 {[%clk 0:00:40]} 59. Ra3 {[%clk 0:01:14]}  Rb2 {[%clk 0:00:41]} 60. Ra7+ {[%clk 0:01:15]}  Kh6 {[%clk 0:00:39]} 61. Ra4 {[%clk 0:01:14]}  Rc2 {[%clk 0:00:39]} 62. g4 {[%clk 0:01:13]}  Rc3+ {[%clk 0:00:38]} 63. Kg2 {[%clk 0:01:14]}  hxg4 {[%clk 0:00:38]} 64. Rxg4 {[%clk 0:01:13]}  Kh5 {[%clk 0:00:39]} 65. Rg5+ {[%clk 0:01:13]}  Kxh4 {[%clk 0:00:35]} 66. Rxg6 {[%clk 0:01:12]}  Kh5 {[%clk 0:00:35]} 67. Rg3 {[%clk 0:01:12]}  Rxg3+ {[%clk 0:00:34]} 68. Kxg3 {[%clk 0:01:13]} 1/2-1/2


[Site "https://www.chess.com"]

[Event "Titled Tuesday Blitz March 21 Early 2023"]
[White "Ter-Sahakyan, Samvel"]
[Black "Gontcharov, Vladislav"]
[WhiteFideId "13302531"]
[BlackFideId "4123492"]
[WhiteElo "2566"]
[BlackElo "2470"]
[Result "1-0"]
[Round "09"]
[TimeControl "180+2"]
[Date "2023.03.21"]
[WhiteClock "0:00:05"]
[BlackClock "0:00:08"]

1. d4 {[%clk 0:03:00]}  Nf6 {[%clk 0:02:59]} 2. c4 {[%clk 0:03:00]}  c5 {[%clk 0:02:58]} 3. d5 {[%clk 0:03:00]}  e6 {[%clk 0:02:58]} 4. Nc3 {[%clk 0:02:59]}  exd5 {[%clk 0:02:59]} 5. cxd5 {[%clk 0:03:00]}  d6 {[%clk 0:02:59]} 6. e4 {[%clk 0:02:59]}  g6 {[%clk 0:02:57]} 7. f4 {[%clk 0:02:59]}  Bg7 {[%clk 0:02:57]} 8. Bb5+ {[%clk 0:03:00]}  Nfd7 {[%clk 0:02:58]} 9. a4 {[%clk 0:02:58]}  Qh4+ {[%clk 0:02:57]} 10. g3 {[%clk 0:02:58]}  Qe7 {[%clk 0:02:57]} 11. Nf3 {[%clk 0:02:58]}  O-O {[%clk 0:02:53]} 12. O-O {[%clk 0:02:47]}  Na6 {[%clk 0:02:53]} 13. Kh1 {[%clk 0:02:06]}  Nb4 {[%clk 0:02:49]} 14. Bd3 {[%clk 0:02:02]}  Nf6 {[%clk 0:02:43]} 15. Kg2 {[%clk 0:01:52]}  Bg4 {[%clk 0:02:41]} 16. h3 {[%clk 0:01:43]}  Bxf3+ {[%clk 0:02:41]} 17. Qxf3 {[%clk 0:01:42]}  Nxd3 {[%clk 0:02:41]} 18. Qxd3 {[%clk 0:01:42]}  Nd7 {[%clk 0:02:40]} 19. Bd2 {[%clk 0:01:38]}  a6 {[%clk 0:02:39]} 20. a5 {[%clk 0:01:33]}  Rab8 {[%clk 0:02:38]} 21. Rae1 {[%clk 0:01:30]}  b5 {[%clk 0:02:33]} 22. axb6 {[%clk 0:01:30]}  Rxb6 {[%clk 0:02:33]} 23. Bc1 {[%clk 0:01:30]}  a5 {[%clk 0:02:24]} 24. g4 {[%clk 0:01:28]}  Rb4 {[%clk 0:02:19]} 25. g5 {[%clk 0:01:26]}  f6 {[%clk 0:02:03]} 26. h4 {[%clk 0:01:20]}  fxg5 {[%clk 0:01:56]} 27. hxg5 {[%clk 0:01:20]}  a4 {[%clk 0:01:50]} 28. Re2 {[%clk 0:00:57]}  Re8 {[%clk 0:01:47]} 29. Rfe1 {[%clk 0:00:52]}  Nb6 {[%clk 0:01:25]} 30. f5 {[%clk 0:00:39]}  Be5 {[%clk 0:01:14]} 31. f6 {[%clk 0:00:31]}  Qd7 {[%clk 0:01:14]} 32. Qf3 {[%clk 0:00:26]}  Nc4 {[%clk 0:01:07]} 33. Rf1 {[%clk 0:00:27]}  Rf8 {[%clk 0:01:05]} 34. Rff2 {[%clk 0:00:17]}  Rf7 {[%clk 0:01:05]} 35. Bf4 {[%clk 0:00:06]}  Bxf4 {[%clk 0:01:03]} 36. Qxf4 {[%clk 0:00:07]}  Ne5 {[%clk 0:01:03]} 37. Re3 {[%clk 0:00:07]}  Qg4+ {[%clk 0:00:59]} 38. Qg3 {[%clk 0:00:04]}  Rb3 {[%clk 0:00:45]} 39. Rfe2 {[%clk 0:00:03]}  a3 {[%clk 0:00:45]} 40. bxa3 {[%clk 0:00:03]}  Rxa3 {[%clk 0:00:43]} 41. Qxg4 {[%clk 0:00:03]}  Nxg4 {[%clk 0:00:42]} 42. Rg3 {[%clk 0:00:04]}  Ne5 {[%clk 0:00:40]} 43. Nb5 {[%clk 0:00:04]}  Ra6 {[%clk 0:00:40]} 44. Nc7 {[%clk 0:00:05]}  Ra7 {[%clk 0:00:35]} 45. Ne6 {[%clk 0:00:05]}  Rfb7 {[%clk 0:00:35]} 46. Rc3 {[%clk 0:00:03]}  Nf7 {[%clk 0:00:34]} 47. Rcc2 {[%clk 0:00:03]}  Rb4 {[%clk 0:00:32]} 48. Rb2 {[%clk 0:00:03]}  h6 {[%clk 0:00:27]} 49. Ra2 {[%clk 0:00:03]}  Rab7 {[%clk 0:00:20]} 50. Ra8+ {[%clk 0:00:03]}  Rb8 {[%clk 0:00:21]} 51. Rxb8+ {[%clk 0:00:03]}  Rxb8 {[%clk 0:00:21]} 52. gxh6 {[%clk 0:00:04]}  Nxh6 {[%clk 0:00:20]} 53. Ng5 {[%clk 0:00:04]}  Nf7 {[%clk 0:00:20]} 54. Ne6 {[%clk 0:00:04]}  Ne5 {[%clk 0:00:20]} 55. Ng5 {[%clk 0:00:04]}  Rf8 {[%clk 0:00:19]} 56. Rf2 {[%clk 0:00:03]}  c4 {[%clk 0:00:18]} 57. Kg3 {[%clk 0:00:03]}  c3 {[%clk 0:00:18]} 58. Rc2 {[%clk 0:00:03]}  Rxf6 {[%clk 0:00:18]} 59. Rxc3 {[%clk 0:00:04]}  Rf1 {[%clk 0:00:17]} 60. Rc7 {[%clk 0:00:04]}  Re1 {[%clk 0:00:17]} 61. Ne6 {[%clk 0:00:03]}  Rxe4 {[%clk 0:00:15]} 62. Rc8+ {[%clk 0:00:04]}  Kf7 {[%clk 0:00:15]} 63. Ng5+ {[%clk 0:00:04]}  Kf6 {[%clk 0:00:10]} 64. Nxe4+ {[%clk 0:00:05]}  Kf5 {[%clk 0:00:11]} 65. Nxd6+ {[%clk 0:00:05]}  Kf6 {[%clk 0:00:11]} 66. Ne4+ {[%clk 0:00:06]}  Ke7 {[%clk 0:00:11]} 67. Ra8 {[%clk 0:00:05]}  Nc4 {[%clk 0:00:11]} 68. Ra7+ {[%clk 0:00:06]}  Ke8 {[%clk 0:00:10]} 69. Kh4 {[%clk 0:00:06]}  Nb6 {[%clk 0:00:10]} 70. Nf6+ {[%clk 0:00:06]}  Kd8 {[%clk 0:00:09]} 71. Kg5 {[%clk 0:00:06]}  Nc8 {[%clk 0:00:08]} 72. Rd7# {[%clk 0:00:05]} 1-0


[Site "https://www.chess.com"]

[Event "Titled Tuesday Blitz March 21 Early 2023"]
[White "Mikhailovsky, Vladimir"]
[Black "Demin, Vladimir"]
[WhiteFideId "34105414"]
[BlackFideId "4167457"]
[WhiteElo "2293"]
[BlackElo "2633"]
[Result "1-0"]
[Round "09"]
[TimeControl "180+2"]
[Date "2023.03.21"]
[WhiteClock "0:00:16"]
[BlackClock "0:00:01"]

1. e4 {[%clk 0:03:00]}  e5 {[%clk 0:02:59]} 2. Nf3 {[%clk 0:03:01]}  Nc6 {[%clk 0:03:00]} 3. Nc3 {[%clk 0:03:02]}  Nf6 {[%clk 0:02:59]} 4. Bb5 {[%clk 0:03:02]}  Bb4 {[%clk 0:02:59]} 5. O-O {[%clk 0:03:03]}  O-O {[%clk 0:02:59]} 6. d3 {[%clk 0:03:04]}  Bxc3 {[%clk 0:02:58]} 7. bxc3 {[%clk 0:03:03]}  d6 {[%clk 0:02:56]} 8. h3 {[%clk 0:03:00]}  Ne7 {[%clk 0:02:55]} 9. Nh4 {[%clk 0:02:58]}  Ng6 {[%clk 0:02:51]} 10. Nxg6 {[%clk 0:02:49]}  fxg6 {[%clk 0:02:50]} 11. Bc4+ {[%clk 0:02:48]}  Kh8 {[%clk 0:02:49]} 12. f4 {[%clk 0:02:46]}  c6 {[%clk 0:02:47]} 13. fxe5 {[%clk 0:02:42]}  dxe5 {[%clk 0:02:47]} 14. Bg5 {[%clk 0:02:41]}  h6 {[%clk 0:02:42]} 15. Be3 {[%clk 0:02:35]}  Qe7 {[%clk 0:02:38]} 16. Qd2 {[%clk 0:02:34]}  Be6 {[%clk 0:02:32]} 17. Bb3 {[%clk 0:02:24]}  g5 {[%clk 0:02:24]} 18. Qe2 {[%clk 0:02:14]}  a5 {[%clk 0:02:14]} 19. Rab1 {[%clk 0:02:08]}  b5 {[%clk 0:02:00]} 20. Kh2 {[%clk 0:02:01]}  a4 {[%clk 0:01:55]} 21. Bxe6 {[%clk 0:01:58]}  Qxe6 {[%clk 0:01:56]} 22. Bc5 {[%clk 0:01:52]}  Rf7 {[%clk 0:01:47]} 23. a3 {[%clk 0:01:52]}  g4 {[%clk 0:01:45]} 24. Rf5 {[%clk 0:01:47]}  gxh3 {[%clk 0:01:41]} 25. gxh3 {[%clk 0:01:45]}  Nh7 {[%clk 0:00:59]} 26. Rbf1 {[%clk 0:01:41]}  Rxf5 {[%clk 0:00:58]} 27. Rxf5 {[%clk 0:01:41]}  Nf6 {[%clk 0:00:55]} 28. Qf3 {[%clk 0:01:36]}  Re8 {[%clk 0:00:52]} 29. Be3 {[%clk 0:01:32]}  Nh7 {[%clk 0:00:41]} 30. h4 {[%clk 0:01:27]}  Qa2 {[%clk 0:00:40]} 31. Qh5 {[%clk 0:00:55]}  Re6 {[%clk 0:00:06]} 32. Qf7 {[%clk 0:00:30]}  Nf6 {[%clk 0:00:04]} 33. Bxh6 {[%clk 0:00:17]}  Qxc2+ {[%clk 0:00:04]} 34. Kg3 {[%clk 0:00:18]}  Qxd3+ {[%clk 0:00:04]} 35. Rf3 {[%clk 0:00:18]}  Nxe4+ {[%clk 0:00:02]} 36. Kh3 {[%clk 0:00:17]}  Qxf3+ {[%clk 0:00:02]} 37. Qxf3 {[%clk 0:00:16]}  Rxh6 {[%clk 0:00:01]} 38. Qxe4 {[%clk 0:00:16]} 1-0


[Site "https://www.chess.com"]

[Event "Titled Tuesday Blitz March 21 Early 2023"]
[White "Tanenbaum, Zachary"]
[Black "Aaditya Dhingra"]
[WhiteFideId "2060850"]
[BlackFideId "25678191"]
[WhiteElo "2175"]
[BlackElo "2083"]
[Result "0-1"]
[Round "09"]
[TimeControl "180+2"]
[Date "2023.03.21"]
[WhiteClock "0:01:14"]
[BlackClock "0:01:22"]

1. e4 {[%clk 0:03:00]}  c5 {[%clk 0:02:57]} 2. Nf3 {[%clk 0:03:00]}  Nc6 {[%clk 0:02:54]} 3. Nc3 {[%clk 0:02:59]}  Nf6 {[%clk 0:02:53]} 4. Bb5 {[%clk 0:02:58]}  Qc7 {[%clk 0:02:52]} 5. O-O {[%clk 0:02:57]}  Nd4 {[%clk 0:02:40]} 6. Re1 {[%clk 0:02:57]}  a6 {[%clk 0:02:36]} 7. Bf1 {[%clk 0:02:56]}  e5 {[%clk 0:02:33]} 8. d3 {[%clk 0:02:46]}  Be7 {[%clk 0:02:29]} 9. Bg5 {[%clk 0:02:45]}  Nxf3+ {[%clk 0:02:25]} 10. Qxf3 {[%clk 0:02:45]}  d6 {[%clk 0:02:24]} 11. Bxf6 {[%clk 0:02:45]}  Bxf6 {[%clk 0:02:21]} 12. Nd5 {[%clk 0:02:45]}  Qd8 {[%clk 0:02:18]} 13. a4 {[%clk 0:02:39]}  Bg5 {[%clk 0:02:11]} 14. a5 {[%clk 0:02:26]}  Bd2 {[%clk 0:02:06]} 15. Red1 {[%clk 0:02:22]}  Bxa5 {[%clk 0:02:06]} 16. c3 {[%clk 0:02:22]}  O-O {[%clk 0:02:01]} 17. d4 {[%clk 0:02:18]}  cxd4 {[%clk 0:01:58]} 18. cxd4 {[%clk 0:02:19]}  Bb6 {[%clk 0:01:55]} 19. dxe5 {[%clk 0:02:14]}  dxe5 {[%clk 0:01:56]} 20. Qa3 {[%clk 0:02:12]}  Bd4 {[%clk 0:01:52]} 21. Rac1 {[%clk 0:01:43]}  Be6 {[%clk 0:01:51]} 22. Nc7 {[%clk 0:01:43]}  Rc8 {[%clk 0:01:50]} 23. Nxe6 {[%clk 0:01:42]}  fxe6 {[%clk 0:01:49]} 24. Qb3 {[%clk 0:01:22]}  Qf6 {[%clk 0:01:25]} 25. Rxc8 {[%clk 0:01:15]}  Qxf2+ {[%clk 0:01:23]} 26. Kh1 {[%clk 0:01:14]}  Qg1# {[%clk 0:01:22]} 0-1


[Site "https://www.chess.com"]